[Event "Titled Tuesday Blitz August 1 Late 2023"]
[White "Romero Pallares, Daniel"]
[Black "Zierk, Steven"]
[WhiteFideId "32025637"]
[BlackFideId "2034255"]
[WhiteElo "2466"]
[BlackElo "2861"]
[Result "1-0"]
[Round "1"]
[TimeControl "180+1"]
[Date "2023.08.01"]
[WhiteClock "0:01:37"]
[BlackClock "0:02:25"]
[Board "31"]

1. d4 {[%clk 0:02:51]}  d5 {[%clk 0:02:58]} 2. Nc3 {[%clk 0:02:51]}  Nf6 {[%clk 0:02:58]} 3. Bf4 {[%clk 0:02:52]}  c5 {[%clk 0:02:57]} 4. e3 {[%clk 0:02:52]}  cxd4 {[%clk 0:02:57]} 5. exd4 {[%clk 0:02:53]}  a6 {[%clk 0:02:57]} 6. Nf3 {[%clk 0:02:52]}  Bg4 {[%clk 0:02:57]} 7. Be2 {[%clk 0:02:44]}  Nc6 {[%clk 0:02:57]} 8. Ne5 {[%clk 0:02:44]}  Bxe2 {[%clk 0:02:56]} 9. Nxe2 {[%clk 0:02:45]}  e6 {[%clk 0:02:56]} 10. c3 {[%clk 0:02:35]}  Bd6 {[%clk 0:02:56]} 11. Ng3 {[%clk 0:02:22]}  O-O {[%clk 0:02:52]} 12. O-O {[%clk 0:02:22]}  Qc7 {[%clk 0:02:51]} 13. Re1 {[%clk 0:02:22]}  b5 {[%clk 0:02:50]} 14. Nh5 {[%clk 0:02:18]}  Nd7 {[%clk 0:02:49]} 15. Qg4 {[%clk 0:02:03]}  g6 {[%clk 0:02:41]} 16. Nxd7 {[%clk 0:02:03]}  Bxf4 {[%clk 0:02:41]} 17. Qxf4 {[%clk 0:01:56]}  Qxf4 {[%clk 0:02:34]} 18. Nxf4 {[%clk 0:01:56]}  Rfd8 {[%clk 0:02:34]} 19. Ne5 {[%clk 0:01:46]}  Na5 {[%clk 0:02:32]} 20. b4 {[%clk 0:01:42]}  Nb7 {[%clk 0:02:31]} 21. Nfd3 {[%clk 0:01:41]}  Nd6 {[%clk 0:02:30]} 22. a4 {[%clk 0:01:39]}  a5 {[%clk 0:02:28]} 23. bxa5 {[%clk 0:01:36]}  Rxa5 {[%clk 0:02:27]} 24. Nc6 {[%clk 0:01:37]}  Rda8 {[%clk 0:02:25]} 25. Nxa5 {[%clk 0:01:37]}  Rxa5 {[%clk 0:02:26]} 26. axb5 {[%clk 0:01:37]}  Rxa1 {[%clk 0:02:25]} 27. Rxa1 {[%clk 0:01:37]} 1-0


[Site "https://www.chess.com"]

[Event "Titled Tuesday Blitz August 1 Late 2023"]
[White "Goncalves, Davi Sulzbacher"]
[Black "Kowalski, Igor"]
[WhiteFideId "2154510"]
[BlackFideId "1172468"]
[WhiteElo "2464"]
[BlackElo "2853"]
[Result "0-1"]
[Round "1"]
[TimeControl "180+1"]
[Date "2023.08.01"]
[WhiteClock "0:00:00"]
[BlackClock "0:00:45"]
[Board "33"]

1. Nf3 {[%clk 0:03:00]}  g6 {[%clk 0:02:58]} 2. c4 {[%clk 0:03:00]}  Bg7 {[%clk 0:02:58]} 3. d4 {[%clk 0:03:00]}  Nf6 {[%clk 0:02:59]} 4. g3 {[%clk 0:02:59]}  O-O {[%clk 0:03:00]} 5. Bg2 {[%clk 0:03:00]}  c6 {[%clk 0:03:00]} 6. O-O {[%clk 0:02:55]}  d5 {[%clk 0:03:00]} 7. Qb3 {[%clk 0:02:54]}  Qb6 {[%clk 0:02:56]} 8. Qxb6 {[%clk 0:02:52]}  axb6 {[%clk 0:02:56]} 9. Nbd2 {[%clk 0:02:37]}  Bf5 {[%clk 0:02:55]} 10. b3 {[%clk 0:02:36]}  Ne4 {[%clk 0:02:55]} 11. Bb2 {[%clk 0:02:34]}  Na6 {[%clk 0:02:53]} 12. cxd5 {[%clk 0:02:31]}  cxd5 {[%clk 0:02:53]} 13. a3 {[%clk 0:02:27]}  Rfc8 {[%clk 0:02:48]} 14. Rfc1 {[%clk 0:02:25]}  e6 {[%clk 0:02:45]} 15. e3 {[%clk 0:02:18]}  Nxd2 {[%clk 0:02:43]} 16. Nxd2 {[%clk 0:02:17]}  Bd3 {[%clk 0:02:41]} 17. Rxc8+ {[%clk 0:02:09]}  Rxc8 {[%clk 0:02:41]} 18. Rc1 {[%clk 0:02:10]}  Rc2 {[%clk 0:02:39]} 19. Rxc2 {[%clk 0:02:08]}  Bxc2 {[%clk 0:02:40]} 20. Bf1 {[%clk 0:02:07]}  Nc5 {[%clk 0:02:36]} 21. b4 {[%clk 0:01:08]}  Nd3 {[%clk 0:02:20]} 22. Bc3 {[%clk 0:00:44]}  h5 {[%clk 0:02:07]} 23. f3 {[%clk 0:00:40]}  h4 {[%clk 0:02:06]} 24. e4 {[%clk 0:00:34]}  Kf8 {[%clk 0:01:21]} 25. exd5 {[%clk 0:00:25]}  exd5 {[%clk 0:01:22]} 26. f4 {[%clk 0:00:24]}  hxg3 {[%clk 0:01:22]} 27. hxg3 {[%clk 0:00:24]}  Ke7 {[%clk 0:01:23]} 28. Kg2 {[%clk 0:00:18]}  Kd6 {[%clk 0:01:12]} 29. Kf3 {[%clk 0:00:18]}  Nc1 {[%clk 0:01:13]} 30. Ke3 {[%clk 0:00:16]}  Bf5 {[%clk 0:01:09]} 31. Bg2 {[%clk 0:00:14]}  f6 {[%clk 0:00:57]} 32. b5 {[%clk 0:00:13]}  Ke6 {[%clk 0:00:51]} 33. Bb4 {[%clk 0:00:13]}  g5 {[%clk 0:00:49]} 34. a4 {[%clk 0:00:12]}  Bh6 {[%clk 0:00:46]} 35. Bf3 {[%clk 0:00:11]}  gxf4+ {[%clk 0:00:46]} 36. gxf4 {[%clk 0:00:11]}  Nd3 {[%clk 0:00:46]} 37. Nb3 {[%clk 0:00:00]}  Nxb4 {[%clk 0:00:45]} 0-1


[Site "https://www.chess.com"]

[Event "Titled Tuesday Blitz August 1 Late 2023"]
[White "Maksimovic, Bojan"]
[Black "Sathish, Pranav"]
[WhiteFideId "14408120"]
[BlackFideId "30967538"]
[WhiteElo "2852"]
[BlackElo "2459"]
[Result "1-0"]
[Round "1"]
[TimeControl "180+1"]
[Date "2023.08.01"]
[WhiteClock "0:01:22"]
[BlackClock "0:00:35"]
[Board "34"]

1. Nf3 {[%clk 0:02:58]}  Nf6 {[%clk 0:02:59]} 2. g3 {[%clk 0:02:58]}  d5 {[%clk 0:02:58]} 3. Bg2 {[%clk 0:02:59]}  g6 {[%clk 0:02:58]} 4. O-O {[%clk 0:02:59]}  Bg7 {[%clk 0:02:59]} 5. d3 {[%clk 0:03:00]}  O-O {[%clk 0:02:59]} 6. Nbd2 {[%clk 0:03:01]}  c5 {[%clk 0:02:58]} 7. e4 {[%clk 0:03:02]}  Nc6 {[%clk 0:02:57]} 8. Re1 {[%clk 0:03:02]}  e5 {[%clk 0:02:56]} 9. c3 {[%clk 0:03:03]}  Re8 {[%clk 0:02:55]} 10. a3 {[%clk 0:03:01]}  a5 {[%clk 0:02:54]} 11. exd5 {[%clk 0:03:01]}  Nxd5 {[%clk 0:02:54]} 12. a4 {[%clk 0:03:01]}  h6 {[%clk 0:02:53]} 13. Nc4 {[%clk 0:03:01]}  Be6 {[%clk 0:02:52]} 14. Qb3 {[%clk 0:03:01]}  Qc7 {[%clk 0:02:51]} 15. Bd2 {[%clk 0:02:56]}  Rad8 {[%clk 0:02:49]} 16. Rad1 {[%clk 0:02:56]}  f5 {[%clk 0:02:47]} 17. Bc1 {[%clk 0:02:56]}  Bf7 {[%clk 0:02:46]} 18. Nfd2 {[%clk 0:02:51]}  Kh7 {[%clk 0:02:43]} 19. Qb5 {[%clk 0:02:51]}  Bf8 {[%clk 0:02:35]} 20. Nb3 {[%clk 0:02:45]}  Qc8 {[%clk 0:02:19]} 21. Nbxa5 {[%clk 0:02:40]}  Nxa5 {[%clk 0:02:09]} 22. Nxa5 {[%clk 0:02:40]}  Re7 {[%clk 0:02:07]} 23. Nc4 {[%clk 0:02:37]}  Bg7 {[%clk 0:02:03]} 24. a5 {[%clk 0:02:33]}  Be8 {[%clk 0:01:58]} 25. Qb3 {[%clk 0:02:33]}  Bc6 {[%clk 0:01:58]} 26. Ne3 {[%clk 0:02:19]}  Nxe3 {[%clk 0:01:51]} 27. Bxe3 {[%clk 0:02:20]}  Bxg2 {[%clk 0:01:48]} 28. Kxg2 {[%clk 0:02:21]}  f4 {[%clk 0:01:48]} 29. Bc1 {[%clk 0:02:21]}  f3+ {[%clk 0:01:41]} 30. Kxf3 {[%clk 0:02:04]}  Qh3 {[%clk 0:01:34]} 31. Be3 {[%clk 0:02:00]}  Rf8+ {[%clk 0:01:24]} 32. Ke2 {[%clk 0:02:00]}  e4 {[%clk 0:01:17]} 33. dxe4 {[%clk 0:01:57]}  Rxe4 {[%clk 0:01:16]} 34. Kd2 {[%clk 0:01:44]}  Qxh2 {[%clk 0:01:11]} 35. Kc1 {[%clk 0:01:41]}  Qg2 {[%clk 0:01:02]} 36. Rd7 {[%clk 0:01:33]}  Kh8 {[%clk 0:00:45]} 37. Red1 {[%clk 0:01:27]}  Rxe3 {[%clk 0:00:37]} 38. fxe3 {[%clk 0:01:27]}  Qxg3 {[%clk 0:00:36]} 39. Qxb7 {[%clk 0:01:22]}  Qxe3+ {[%clk 0:00:35]} 40. Kb1 {[%clk 0:01:22]} 1-0


[Site "https://www.chess.com"]

[Event "Titled Tuesday Blitz August 1 Late 2023"]
[White "Yeritsyan, Hayk"]
[Black "Bazeev, German"]
[WhiteFideId "13307320"]
[BlackFideId "24119350"]
[WhiteElo "2453"]
[BlackElo "2820"]
[Result "0-1"]
[Round "1"]
[TimeControl "180+1"]
[Date "2023.08.01"]
[WhiteClock "0:00:06"]
[BlackClock "0:00:30"]
[Board "39"]

1. d4 {[%clk 0:02:57]}  Nf6 {[%clk 0:02:59]} 2. Nf3 {[%clk 0:02:57]}  e6 {[%clk 0:02:58]} 3. e3 {[%clk 0:02:57]}  c5 {[%clk 0:02:56]} 4. Bd3 {[%clk 0:02:58]}  Nc6 {[%clk 0:02:54]} 5. c3 {[%clk 0:02:59]}  d5 {[%clk 0:02:53]} 6. Bd2 {[%clk 0:02:59]}  Be7 {[%clk 0:02:49]} 7. Bc1 {[%clk 0:02:59]}  O-O {[%clk 0:02:45]} 8. Nbd2 {[%clk 0:02:59]}  b6 {[%clk 0:02:44]} 9. Qe2 {[%clk 0:02:59]}  Bb7 {[%clk 0:02:45]} 10. O-O {[%clk 0:03:00]}  Nd7 {[%clk 0:02:41]} 11. Bc2 {[%clk 0:02:47]}  Rc8 {[%clk 0:02:37]} 12. dxc5 {[%clk 0:02:46]}  bxc5 {[%clk 0:02:34]} 13. e4 {[%clk 0:02:47]}  Re8 {[%clk 0:02:27]} 14. Re1 {[%clk 0:02:44]}  d4 {[%clk 0:02:26]} 15. c4 {[%clk 0:02:30]}  e5 {[%clk 0:02:25]} 16. Bd3 {[%clk 0:02:29]}  Nb6 {[%clk 0:02:16]} 17. a3 {[%clk 0:02:29]}  a5 {[%clk 0:02:14]} 18. Rd1 {[%clk 0:02:24]}  Rc7 {[%clk 0:02:13]} 19. a4 {[%clk 0:02:20]}  Bf8 {[%clk 0:02:11]} 20. b3 {[%clk 0:02:20]}  g6 {[%clk 0:02:03]} 21. Ba3 {[%clk 0:02:19]}  Nb8 {[%clk 0:01:56]} 22. Ne1 {[%clk 0:02:17]}  Bc8 {[%clk 0:01:51]} 23. Nc2 {[%clk 0:02:16]}  f5 {[%clk 0:01:46]} 24. f3 {[%clk 0:02:15]}  Rf7 {[%clk 0:01:47]} 25. Rf1 {[%clk 0:02:13]}  Bh6 {[%clk 0:01:46]} 26. Rad1 {[%clk 0:02:12]}  Qc7 {[%clk 0:01:43]} 27. Rfe1 {[%clk 0:02:07]}  Na6 {[%clk 0:01:34]} 28. Rf1 {[%clk 0:02:04]}  Bf8 {[%clk 0:01:31]} 29. Nb1 {[%clk 0:02:02]}  f4 {[%clk 0:01:30]} 30. g4 {[%clk 0:01:55]}  fxg3 {[%clk 0:01:22]} 31. hxg3 {[%clk 0:01:55]}  h5 {[%clk 0:01:22]} 32. Bc1 {[%clk 0:01:51]}  Be6 {[%clk 0:01:10]} 33. Rf2 {[%clk 0:01:50]}  Bd6 {[%clk 0:01:09]} 34. Rdf1 {[%clk 0:01:46]}  Kg7 {[%clk 0:01:09]} 35. Bd2 {[%clk 0:01:46]}  Nd7 {[%clk 0:01:06]} 36. Qe1 {[%clk 0:01:45]}  Qb7 {[%clk 0:01:06]} 37. Na1 {[%clk 0:01:28]}  Bh3 {[%clk 0:01:04]} 38. Na3 {[%clk 0:01:25]}  Bxf1 {[%clk 0:01:03]} 39. Qxf1 {[%clk 0:01:25]}  Nb4 {[%clk 0:01:04]} 40. Nb5 {[%clk 0:01:23]}  Be7 {[%clk 0:01:03]} 41. Nc2 {[%clk 0:01:15]}  Nf6 {[%clk 0:01:01]} 42. Nxb4 {[%clk 0:01:14]}  cxb4 {[%clk 0:01:01]} 43. Qh3 {[%clk 0:01:10]}  Qd7 {[%clk 0:00:59]} 44. Qg2 {[%clk 0:01:06]}  Ref8 {[%clk 0:00:58]} 45. Rf1 {[%clk 0:01:01]}  Ng4 {[%clk 0:00:57]} 46. fxg4 {[%clk 0:00:58]}  Qxg4 {[%clk 0:00:54]} 47. Rxf7+ {[%clk 0:00:48]}  Rxf7 {[%clk 0:00:55]} 48. Be2 {[%clk 0:00:48]}  Qd7 {[%clk 0:00:55]} 49. Bd3 {[%clk 0:00:41]}  Qd8 {[%clk 0:00:55]} 50. Qh3 {[%clk 0:00:33]}  Bg5 {[%clk 0:00:54]} 51. Be1 {[%clk 0:00:29]}  Qf6 {[%clk 0:00:49]} 52. Qg2 {[%clk 0:00:19]}  Qf3 {[%clk 0:00:38]} 53. Qxf3 {[%clk 0:00:18]}  Rxf3 {[%clk 0:00:39]} 54. Bc2 {[%clk 0:00:17]}  d3 {[%clk 0:00:38]} 55. Bd1 {[%clk 0:00:18]}  Be3+ {[%clk 0:00:30]} 56. Kg2 {[%clk 0:00:17]}  Rf6 {[%clk 0:00:30]} 57. c5 {[%clk 0:00:10]}  d2 {[%clk 0:00:30]} 58. Bxd2 {[%clk 0:00:10]}  Rf2+ {[%clk 0:00:31]} 59. Kg1 {[%clk 0:00:09]}  Rxd2+ {[%clk 0:00:32]} 60. Kf1 {[%clk 0:00:09]}  Bxc5 {[%clk 0:00:31]} 61. Ke1 {[%clk 0:00:09]}  Rg2 {[%clk 0:00:31]} 62. Be2 {[%clk 0:00:09]}  Rxg3 {[%clk 0:00:30]} 63. Kd2 {[%clk 0:00:10]}  h4 {[%clk 0:00:31]} 64. Nd4 {[%clk 0:00:06]}  Bxd4 {[%clk 0:00:30]} 0-1


[Site "https://www.chess.com"]

[Event "Titled Tuesday Blitz August 1 Late 2023"]
[White "Ashraf, Artin"]
[Black "D`Arruda, Ricardo D."]
[WhiteFideId "22514805"]
[BlackFideId "100692"]
[WhiteElo "2820"]
[BlackElo "2450"]
[Result "1-0"]
[Round "1"]
[TimeControl "180+1"]
[Date "2023.08.01"]
[WhiteClock "0:01:33"]
[BlackClock "0:00:32"]
[Board "40"]

1. d4 {[%clk 0:02:59]}  Nf6 {[%clk 0:02:59]} 2. c4 {[%clk 0:03:00]}  e5 {[%clk 0:02:58]} 3. e3 {[%clk 0:02:51]}  exd4 {[%clk 0:02:57]} 4. exd4 {[%clk 0:02:51]}  d5 {[%clk 0:02:57]} 5. Nc3 {[%clk 0:02:48]}  Bb4 {[%clk 0:02:56]} 6. Bg5 {[%clk 0:02:47]}  O-O {[%clk 0:02:55]} 7. Bxf6 {[%clk 0:02:30]}  Qxf6 {[%clk 0:02:54]} 8. cxd5 {[%clk 0:02:30]}  c6 {[%clk 0:02:51]} 9. Bd3 {[%clk 0:02:26]}  cxd5 {[%clk 0:02:32]} 10. Ne2 {[%clk 0:02:26]}  Nc6 {[%clk 0:02:32]} 11. O-O {[%clk 0:02:25]}  Be6 {[%clk 0:02:32]} 12. Bc2 {[%clk 0:02:22]}  Rad8 {[%clk 0:02:24]} 13. Qd3 {[%clk 0:02:19]}  g6 {[%clk 0:02:24]} 14. Rad1 {[%clk 0:02:17]}  Rfe8 {[%clk 0:02:23]} 15. Qg3 {[%clk 0:02:15]}  Bd6 {[%clk 0:02:19]} 16. f4 {[%clk 0:02:12]}  Nb4 {[%clk 0:01:52]} 17. Bb1 {[%clk 0:02:10]}  Bf5 {[%clk 0:01:52]} 18. Bxf5 {[%clk 0:02:00]}  Qxf5 {[%clk 0:01:53]} 19. Qf3 {[%clk 0:02:01]}  Nc2 {[%clk 0:01:41]} 20. Nxd5 {[%clk 0:01:54]}  Bb8 {[%clk 0:01:25]} 21. Nec3 {[%clk 0:01:51]}  Re6 {[%clk 0:00:58]} 22. g4 {[%clk 0:01:47]}  Nxd4 {[%clk 0:00:40]} 23. Rxd4 {[%clk 0:01:41]}  Qc2 {[%clk 0:00:32]} 24. Nf6+ {[%clk 0:01:33]} 1-0


[Site "https://www.chess.com"]

[Event "Titled Tuesday Blitz August 1 Late 2023"]
[White "slidingknight2775"]
[Black "Lamaze, Simon"]
[BlackFideId "36069264"]
[WhiteElo "2448"]
[BlackElo "2803"]
[Result "0-1"]
[Round "1"]
[TimeControl "180+1"]
[Date "2023.08.01"]
[WhiteClock "0:00:02"]
[BlackClock "0:00:51"]
[Board "41"]

1. Nf3 {[%clk 0:02:59]}  Nf6 {[%clk 0:02:58]} 2. g3 {[%clk 0:02:58]}  g6 {[%clk 0:02:58]} 3. Bg2 {[%clk 0:02:58]}  Bg7 {[%clk 0:02:58]} 4. O-O {[%clk 0:02:59]}  O-O {[%clk 0:02:59]} 5. c4 {[%clk 0:02:59]}  d6 {[%clk 0:02:58]} 6. Nc3 {[%clk 0:02:59]}  c5 {[%clk 0:02:58]} 7. d4 {[%clk 0:02:56]}  Nc6 {[%clk 0:02:57]} 8. dxc5 {[%clk 0:02:37]}  dxc5 {[%clk 0:02:56]} 9. Be3 {[%clk 0:02:34]}  Qa5 {[%clk 0:02:46]} 10. Qb3 {[%clk 0:02:15]}  Qb4 {[%clk 0:02:27]} 11. Nd5 {[%clk 0:01:51]}  Nxd5 {[%clk 0:02:23]} 12. cxd5 {[%clk 0:01:50]}  c4 {[%clk 0:02:23]} 13. Qc2 {[%clk 0:01:23]}  Bf5 {[%clk 0:02:23]} 14. Qd2 {[%clk 0:01:21]}  Rfd8 {[%clk 0:01:56]} 15. a3 {[%clk 0:00:54]}  Qxd2 {[%clk 0:01:53]} 16. Nxd2 {[%clk 0:00:55]}  Na5 {[%clk 0:01:53]} 17. Ra2 {[%clk 0:00:40]}  e6 {[%clk 0:01:32]} 18. dxe6 {[%clk 0:00:35]}  Bxe6 {[%clk 0:01:33]} 19. Ne4 {[%clk 0:00:21]}  c3 {[%clk 0:01:32]} 20. b3 {[%clk 0:00:16]}  Bxb3 {[%clk 0:01:31]} 21. Raa1 {[%clk 0:00:16]}  c2 {[%clk 0:01:32]} 22. Rac1 {[%clk 0:00:16]}  Rd1 {[%clk 0:01:30]} 23. Nc5 {[%clk 0:00:15]}  Rxf1+ {[%clk 0:01:04]} 24. Bxf1 {[%clk 0:00:16]}  Rc8 {[%clk 0:00:59]} 25. Bh3 {[%clk 0:00:11]}  f5 {[%clk 0:01:00]} 26. Bg2 {[%clk 0:00:09]}  Kh8 {[%clk 0:00:53]} 27. Bxb7 {[%clk 0:00:05]}  Nxb7 {[%clk 0:00:52]} 28. Nxb3 {[%clk 0:00:04]}  Bb2 {[%clk 0:00:51]} 29. Kg2 {[%clk 0:00:03]}  Bxc1 {[%clk 0:00:52]} 30. Bxc1 {[%clk 0:00:04]}  Kg8 {[%clk 0:00:50]} 31. Kf3 {[%clk 0:00:04]}  Rc3+ {[%clk 0:00:50]} 32. e3 {[%clk 0:00:02]}  Rxb3 {[%clk 0:00:51]} 0-1


[Site "https://www.chess.com"]

[Event "Titled Tuesday Blitz August 1 Late 2023"]
[White "Grigorov, Grigor"]
[Black "Novikov, Evgenij"]
[WhiteFideId "2907313"]
[BlackFideId "4125380"]
[WhiteElo "2788"]
[BlackElo "2443"]
[Result "1-0"]
[Round "1"]
[TimeControl "180+1"]
[Date "2023.08.01"]
[WhiteClock "0:00:06"]
[BlackClock "0:00:00"]
[Board "44"]

1. Nf3 {[%clk 0:03:00]}  d6 {[%clk 0:02:59]} 2. d4 {[%clk 0:03:00]}  Nd7 {[%clk 0:02:56]} 3. e4 {[%clk 0:03:00]}  c6 {[%clk 0:02:55]} 4. Bd3 {[%clk 0:02:59]}  e5 {[%clk 0:02:55]} 5. c3 {[%clk 0:02:59]}  Be7 {[%clk 0:02:53]} 6. O-O {[%clk 0:02:59]}  Ngf6 {[%clk 0:02:53]} 7. Re1 {[%clk 0:02:59]}  O-O {[%clk 0:02:53]} 8. Nbd2 {[%clk 0:02:58]}  a5 {[%clk 0:02:50]} 9. a4 {[%clk 0:02:56]}  Re8 {[%clk 0:02:49]} 10. Nf1 {[%clk 0:02:55]}  Qc7 {[%clk 0:02:49]} 11. Ng3 {[%clk 0:02:55]}  Nf8 {[%clk 0:02:48]} 12. h3 {[%clk 0:02:51]}  Ng6 {[%clk 0:02:47]} 13. Bg5 {[%clk 0:02:48]}  h6 {[%clk 0:02:44]} 14. Be3 {[%clk 0:02:48]}  b6 {[%clk 0:02:40]} 15. Qd2 {[%clk 0:02:47]}  Kh7 {[%clk 0:02:34]} 16. Rad1 {[%clk 0:02:41]}  Ba6 {[%clk 0:02:31]} 17. Bc2 {[%clk 0:02:39]}  c5 {[%clk 0:02:24]} 18. Nf5 {[%clk 0:02:33]}  Bf8 {[%clk 0:02:21]} 19. d5 {[%clk 0:02:07]}  b5 {[%clk 0:02:19]} 20. axb5 {[%clk 0:02:07]}  Bxb5 {[%clk 0:02:20]} 21. g4 {[%clk 0:02:07]}  Ng8 {[%clk 0:02:04]} 22. Ra1 {[%clk 0:02:00]}  f6 {[%clk 0:01:58]} 23. Ba4 {[%clk 0:01:50]}  Qd7 {[%clk 0:01:51]} 24. Qc2 {[%clk 0:01:40]}  Reb8 {[%clk 0:01:46]} 25. b3 {[%clk 0:01:37]}  Nf4 {[%clk 0:01:39]} 26. Bxf4 {[%clk 0:01:34]}  exf4 {[%clk 0:01:40]} 27. e5 {[%clk 0:01:31]}  g6 {[%clk 0:01:20]} 28. N5h4 {[%clk 0:01:24]}  Qg7 {[%clk 0:01:13]} 29. e6 {[%clk 0:01:17]}  Ne7 {[%clk 0:01:10]} 30. Bxb5 {[%clk 0:01:11]}  Rxb5 {[%clk 0:01:09]} 31. c4 {[%clk 0:01:11]}  Rb7 {[%clk 0:01:03]} 32. Ng2 {[%clk 0:01:10]}  f5 {[%clk 0:00:50]} 33. g5 {[%clk 0:01:10]}  h5 {[%clk 0:00:47]} 34. Nxf4 {[%clk 0:01:09]}  Qh8 {[%clk 0:00:39]} 35. Ra3 {[%clk 0:00:53]}  Bg7 {[%clk 0:00:38]} 36. Qd2 {[%clk 0:00:35]}  Bc3 {[%clk 0:00:36]} 37. Qe3 {[%clk 0:00:35]}  Bxe1 {[%clk 0:00:35]} 38. Qxe1 {[%clk 0:00:36]}  Qb2 {[%clk 0:00:31]} 39. Rxa5 {[%clk 0:00:33]}  Rxa5 {[%clk 0:00:27]} 40. Qxa5 {[%clk 0:00:34]}  Qc1+ {[%clk 0:00:25]} 41. Kg2 {[%clk 0:00:31]}  Qxf4 {[%clk 0:00:25]} 42. Qd8 {[%clk 0:00:31]}  Qc1 {[%clk 0:00:15]} 43. Qe8 {[%clk 0:00:29]}  Qb2 {[%clk 0:00:14]} 44. Qd8 {[%clk 0:00:25]}  Qg7 {[%clk 0:00:12]} 45. Qxd6 {[%clk 0:00:25]}  Rxb3 {[%clk 0:00:12]} 46. Qxc5 {[%clk 0:00:19]}  f4 {[%clk 0:00:11]} 47. d6 {[%clk 0:00:17]}  Nf5 {[%clk 0:00:11]} 48. d7 {[%clk 0:00:15]}  Rxf3 {[%clk 0:00:08]} 49. Kxf3 {[%clk 0:00:11]}  Nh4+ {[%clk 0:00:08]} 50. Ke4 {[%clk 0:00:10]}  Qc3 {[%clk 0:00:00]} 51. Qe7+ {[%clk 0:00:06]} 1-0


[Site "https://www.chess.com"]

[Event "Titled Tuesday Blitz August 1 Late 2023"]
[White "Zhukova, Natalia"]
[Black "Basso, Pier Luigi"]
[WhiteFideId "14101513"]
[BlackFideId "866970"]
[WhiteElo "2441"]
[BlackElo "2785"]
[Result "0-1"]
[Round "1"]
[TimeControl "180+1"]
[Date "2023.08.01"]
[WhiteClock "0:00:00"]
[BlackClock "0:01:07"]
[Board "45"]

1. c4 {[%clk 0:02:58]}  c6 {[%clk 0:02:58]} 2. Nc3 {[%clk 0:02:58]}  d5 {[%clk 0:02:58]} 3. d4 {[%clk 0:02:59]}  Nf6 {[%clk 0:02:58]} 4. Nf3 {[%clk 0:02:59]}  e6 {[%clk 0:02:58]} 5. e3 {[%clk 0:02:58]}  Nbd7 {[%clk 0:02:57]} 6. Bd3 {[%clk 0:02:58]}  dxc4 {[%clk 0:02:57]} 7. Bxc4 {[%clk 0:02:59]}  b5 {[%clk 0:02:57]} 8. Be2 {[%clk 0:02:55]}  Bb7 {[%clk 0:02:55]} 9. e4 {[%clk 0:02:54]}  b4 {[%clk 0:02:54]} 10. e5 {[%clk 0:02:55]}  bxc3 {[%clk 0:02:54]} 11. exf6 {[%clk 0:02:55]}  Nxf6 {[%clk 0:02:48]} 12. bxc3 {[%clk 0:02:54]}  Bd6 {[%clk 0:02:41]} 13. Nd2 {[%clk 0:02:51]}  O-O {[%clk 0:02:37]} 14. Rb1 {[%clk 0:02:49]}  Rb8 {[%clk 0:02:09]} 15. Nc4 {[%clk 0:02:49]}  c5 {[%clk 0:01:53]} 16. Nxd6 {[%clk 0:02:42]}  Qxd6 {[%clk 0:01:53]} 17. O-O {[%clk 0:01:54]}  cxd4 {[%clk 0:01:40]} 18. Qxd4 {[%clk 0:01:46]}  Qxd4 {[%clk 0:01:40]} 19. cxd4 {[%clk 0:01:47]}  Be4 {[%clk 0:01:37]} 20. Rxb8 {[%clk 0:01:23]}  Rxb8 {[%clk 0:01:38]} 21. Ba3 {[%clk 0:01:07]}  Bd5 {[%clk 0:01:30]} 22. Bc5 {[%clk 0:01:03]}  Rb2 {[%clk 0:01:29]} 23. Bd3 {[%clk 0:00:43]}  Rxa2 {[%clk 0:01:27]} 24. Rb1 {[%clk 0:00:44]}  Nd7 {[%clk 0:01:25]} 25. Bb5 {[%clk 0:00:23]}  Nxc5 {[%clk 0:01:19]} 26. dxc5 {[%clk 0:00:24]}  Kf8 {[%clk 0:01:18]} 27. Bd3 {[%clk 0:00:07]}  Ke7 {[%clk 0:01:15]} 28. h4 {[%clk 0:00:07]}  h6 {[%clk 0:01:14]} 29. Rb8 {[%clk 0:00:05]}  Ra5 {[%clk 0:01:12]} 30. Rc8 {[%clk 0:00:03]}  Kd7 {[%clk 0:01:10]} 31. Rf8 {[%clk 0:00:03]}  e5 {[%clk 0:01:09]} 32. Rg8 {[%clk 0:00:03]}  g6 {[%clk 0:01:08]} 33. Rh8 {[%clk 0:00:00]}  h5 {[%clk 0:01:07]} 0-1


[Site "https://www.chess.com"]